fUST/lending_fUST_20250221
["ID","MTS","AMOUNT","RATE_DAILY","PERIOD"]
[353902193,1740120647129,-14329.18,0.00014027,2]
[353902194,1740120647139,-2108.3,0.00014027,2]
[353902195,1740120647148,-2810.54,0.00014027,2]
[353902196,1740120647157,-26041.13,0.00014027,2]
[353902197,1740120647166,-500.0,0.00014027,2]
[353902198,1740120647175,-1819.15,0.00014027,2]
[353902199,1740120647184,-1091.54,0.00014027,2]
[353902200,1740120647193,-1402.99,0.00014027,2]
[353902201,1740120647203,-553.25,0.00014027,2]
[353902202,1740120647212,-500.0,0.00014027,2]
[353902203,1740120647221,-637.86,0.00014027,2]
[353902204,1740120647230,-1020.28,0.00014027,2]
[353902205,1740120647239,-964.2,0.00014027,2]
[353902206,1740120647248,-500.0,0.00014027,2]
[353902207,1740120647257,-500.0,0.00014027,2]
[353902208,1740120647266,-1691.25,0.00014027,2]
[353902209,1740120647275,-500.0,0.00014027,2]
[353902210,1740120647285,-936.31,0.00014027,2]
[353902211,1740120647294,-1105.84,0.00014027,2]
[353902212,1740120647303,-2604.99,0.00014027,2]
[353902213,1740120647312,-500.0,0.00014027,2]
[353902214,1740120647321,-3205.2,0.00014027,2]
[353902215,1740120647331,-4796.56,0.00014027,2]
[353902216,1740120647340,-11062.54,0.00014027,2]
[353902217,1740120647349,-818.24,0.00014027,2]
[353902218,1740120647358,-779.54,0.00014027,2]
[353902219,1740120647367,-1545.02,0.00014027,2]
[353902220,1740120647376,-500.0,0.00014027,2]
[353902221,1740120647385,-859.94,0.00014027,2]
[353902222,1740120647395,-2726.55,0.00014027,2]
[353902223,1740120647405,-1924.98,0.00014027,2]
[353902224,1740120647415,-612.97,0.00014027,2]
[353902225,1740120647424,-1670.96,0.00014027,2]
[353902226,1740120647433,-500.0,0.00014027,2]
[353902227,1740120647443,-500.0,0.00014027,2]
[353902228,1740120647451,-1097.25,0.00014027,2]
[353902229,1740120647461,-2370.75,0.00014027,2]
[353902230,1740120647470,-901.18,0.00014027,2]
[353902231,1740120647479,-5011.77,0.00014027,2]
[353902232,1740120647488,-500.0,0.00014027,2]
[353902233,1740120647497,-1698.63,0.00014027,2]
[353902234,1740120647507,-500.0,0.00014027,2]
[353902235,1740120647516,-500.0,0.00014027,2]
[353902236,1740120647525,-500.0,0.00014027,2]
[353902237,1740120647535,-500.0,0.00014027,2]
[353902238,1740120647543,-500.0,0.00014027,2]
[353902239,1740120647553,-500.0,0.00014027,2]
[353902240,1740120647562,-454.04102964,0.00014027,2]
[353902241,1740120647571,-500.43396858,0.00014041,2]
[353902242,1740120647580,-500.27639315,0.00014041,2]
[353902243,1740120647590,-151.0,0.000141,2]
[353902244,1740120647599,-151.0,0.000141,2]
[353902245,1740120647609,-157.9585571,0.000141,2]
[353902246,1740120647618,-157.9585571,0.000141,2]
[353902247,1740120647627,-157.9585571,0.000141,2]
[353902248,1740120647636,-157.9585571,0.000141,2]
[353902249,1740120647645,-157.9585571,0.000141,2]
[353902250,1740120647655,-157.95,0.000141,2]
[353902251,1740120647664,-653.87299429,0.000141,2]
[353902252,1740120647673,-653.87299429,0.000141,2]
[353902253,1740120647682,-653.87299429,0.000141,2]
[353902254,1740120647692,-653.87299429,0.000141,2]
[353902255,1740120647701,-653.87299429,0.000141,2]
[353902256,1740120647808,-653.87299429,0.000141,2]
[353902257,1740120647817,-653.87299429,0.000141,2]
[353902258,1740120647827,-653.87299429,0.000141,2]
[353902259,1740120647836,-653.87299429,0.000141,2]
[353902260,1740120647846,-653.87299429,0.000141,2]
[353902261,1740120647856,-653.87299429,0.000141,2]
[353902262,1740120647865,-653.87299429,0.000141,2]
[353902263,1740120647876,-653.87299429,0.000141,2]
[353902264,1740120647885,-653.87299429,0.000141,2]
[353902265,1740120647897,-653.87299429,0.000141,2]
[353902266,1740120647908,-653.87299429,0.000141,2]
[353902267,1740120647920,-653.87299429,0.000141,2]
[353902268,1740120647930,-653.87299429,0.000141,2]
[353902269,1740120647940,-653.87299429,0.000141,2]
[353902270,1740120647951,-653.87,0.000141,2]
[353902271,1740120647960,-865.29765616,0.000141,2]
[353902272,1740120647970,-865.29765616,0.000141,2]
[353902273,1740120647981,-865.29765616,0.000141,2]
[353902274,1740120647991,-865.29765616,0.000141,2]
[353902275,1740120648002,-865.29765616,0.000141,2]
[353902276,1740120648012,-865.29765616,0.000141,2]
[353902277,1740120648024,-865.29765616,0.000141,2]
[353902278,1740120648034,-865.29765616,0.000141,2]
[353902279,1740120648044,-865.29765616,0.000141,2]
[353902280,1740120648054,-865.29765616,0.000141,2]
[353902281,1740120648064,-865.29765616,0.000141,2]
[353902282,1740120648074,-865.29765616,0.000141,2]
[353902283,1740120648085,-865.29765616,0.000141,2]
[353902284,1740120648095,-865.29765616,0.000141,2]
[353902285,1740120648105,-865.29765616,0.000141,2]
[353902286,1740120648116,-865.29765616,0.000141,2]
[353902287,1740120648126,-865.29765616,0.000141,2]
[353902288,1740120648135,-865.29765616,0.000141,2]
[353902289,1740120648144,-865.29765616,0.000141,2]
[353902290,1740120648153,-865.29,0.000141,2]
[353902291,1740120648163,-308.01581002,0.00014108,2]
[353902292,1740120648172,-500.0,0.00014108,2]
[353902293,1740120648181,-500.0,0.00014108,2]
[353902294,1740120648191,-176.58058945,0.00014108,2]
[353902295,1740120648200,-500.0,0.00014108,2]
[353902296,1740120648210,-245.35470872,0.00014108,2]
[353902297,1740120648221,-500.0,0.00014109,2]
[353902298,1740120648231,-500.0,0.00014109,2]
[353902299,1740120648240,-500.0,0.00014109,2]
[353902300,1740120648250,-500.0,0.00014109,2]
[353902301,1740120648259,-500.0,0.00014109,2]
[353902302,1740120648268,-500.0,0.00014109,2]
[353902303,1740120648277,-1204.12,0.00014109,2]
[353902304,1740120648287,-500.0,0.00014109,2]
[353902305,1740120648296,-500.0,0.00014109,2]
[353902306,1740120648305,-500.0,0.00014109,2]
[353902307,1740120648314,-500.0,0.00014109,2]
[353902308,1740120648323,-500.0,0.00014109,2]
[353902309,1740120648332,-500.0,0.00014109,2]
[353902310,1740120648341,-664.07,0.00014109,2]
[353902311,1740120648350,-500.0,0.00014109,2]
[353902312,1740120648359,-558.34,0.00014109,2]
[353902313,1740120648369,-500.0,0.00014109,2]
[353902314,1740120648378,-500.0,0.00014109,2]
[353902315,1740120648388,-295.64,0.00014109,2]
[353902316,1740120648398,-365.19142662,0.00014109,2]
[353902317,1740120648407,-838.28,0.00014109,2]
[353902318,1740120648416,-500.0,0.00014109,2]
[353902319,1740120648425,-854.95,0.00014109,2]
[353902320,1740120648435,-500.0,0.00014109,2]
[353902321,1740120648445,-500.0,0.00014109,2]
[353902322,1740120648453,-535.71,0.00014109,2]
[353902323,1740120648462,-500.0,0.00014109,2]
[353902324,1740120648471,-500.0,0.00014109,2]
[353902325,1740120648480,-500.0,0.00014109,2]
[353902326,1740120648489,-500.0,0.00014109,2]
[353902327,1740120648498,-946.87,0.00014109,2]
[353902328,1740120648507,-500.0,0.00014109,2]
[353902329,1740120648516,-500.0,0.00014109,2]
[353902330,1740120648525,-500.0,0.00014109,2]
[353902331,1740120648535,-727.01,0.00014109,2]
[353902332,1740120648543,-558.0,0.00014109,2]
[353902333,1740120648553,-500.0,0.00014109,2]
[353902334,1740120648562,-613.4,0.00014109,2]
[353902335,1740120648571,-500.0,0.00014109,2]
[353902336,1740120648580,-500.0,0.00014109,2]
[353902337,1740120648590,-500.0,0.00014109,2]
[353902338,1740120648599,-500.0,0.00014109,2]
[353902339,1740120648608,-500.0,0.00014109,2]
[353902340,1740120648618,-500.0,0.00014109,2]
[353902341,1740120648627,-500.0,0.00014109,2]
[353902342,1740120648636,-1439.77,0.00014109,2]
[353902343,1740120648645,-360.46640634,0.00014109,2]
[353902344,1740120648654,-641.22,0.00014109,2]
[353902345,1740120648663,-500.0,0.00014109,2]
[353902346,1740120648672,-500.0,0.00014109,2]
[353902347,1740120648681,-1628.44,0.00014109,2]
[353902348,1740120648690,-500.0,0.00014109,2]
[353902349,1740120648699,-500.0,0.00014109,2]
[353902350,1740120648708,-5952.21,0.00014109,2]
[353902351,1740120648718,-500.0,0.00014109,2]
[353902352,1740120648728,-852.78,0.00014109,2]
[353902353,1740120648738,-14329.18,0.00014109,2]
[353902354,1740120648747,-2108.3,0.00014109,2]
[353902355,1740120648756,-2810.54,0.00014109,2]
[353902356,1740120648766,-26041.13,0.00014109,2]
[353902357,1740120648774,-500.0,0.00014109,2]
[353902358,1740120648783,-1819.15,0.00014109,2]
[353902359,1740120648793,-1091.54,0.00014109,2]
[353902360,1740120648805,-1402.99,0.00014109,2]
[353902361,1740120648815,-553.25,0.00014109,2]
[353902362,1740120648824,-500.0,0.00014109,2]
[353902363,1740120648833,-637.86,0.00014109,2]
[353902364,1740120648844,-1020.28,0.00014109,2]
[353902365,1740120648854,-964.2,0.00014109,2]
[353902366,1740120648863,-500.0,0.00014109,2]
[353902367,1740120648872,-500.0,0.00014109,2]
[353902368,1740120648883,-1691.25,0.00014109,2]
[353902369,1740120648894,-500.0,0.00014109,2]
[353902370,1740120648904,-936.31,0.00014109,2]
[353902371,1740120648913,-1105.84,0.00014109,2]
[353902372,1740120648923,-2604.99,0.00014109,2]
[353902373,1740120648932,-500.0,0.00014109,2]
[353902374,1740120648941,-3205.2,0.00014109,2]
[353902375,1740120648951,-4796.56,0.00014109,2]
[353902376,1740120648960,-11062.54,0.00014109,2]
[353902377,1740120648970,-818.24,0.00014109,2]
[353902378,1740120648979,-779.54,0.00014109,2]
[353902379,1740120648988,-1545.02,0.00014109,2]
[353902380,1740120648998,-500.0,0.00014109,2]
[353902381,1740120649008,-859.94,0.00014109,2]
[353902382,1740120649017,-2726.55,0.00014109,2]
[353902383,1740120649026,-1924.98,0.00014109,2]
[353902384,1740120649036,-612.97,0.00014109,2]
[353902385,1740120649046,-1670.96,0.00014109,2]
[353902386,1740120649057,-500.0,0.00014109,2]
[353902387,1740120649067,-500.0,0.00014109,2]
[353902388,1740120649076,-1097.25,0.00014109,2]
[353902389,1740120649086,-2370.75,0.00014109,2]
[353902390,1740120649096,-901.18,0.00014109,2]
[353902391,1740120649105,-5011.77,0.00014109,2]
[353902392,1740120649115,-500.0,0.00014109,2]
[353902393,1740120649125,-1698.63,0.00014109,2]
[353902394,1740120649134,-500.0,0.00014109,2]
[353902395,1740120649143,-151.0,0.00014109,2]
[353902396,1740120649152,-500.0,0.00014109,2]
[353902397,1740120649162,-500.0,0.00014109,2]
[353902398,1740120649171,-500.0,0.00014109,2]
[353902399,1740120649180,-500.0,0.00014109,2]
[353902400,1740120649190,-500.0,0.00014109,2]
[353902401,1740120649199,-2926.33189113,0.00014121,2]
[353902402,1740120649209,-161.13689564,0.00014121,2]
[353902403,1740120649218,-500.0,0.00014173,2]
[353902404,1740120649227,-500.0,0.00014173,2]
[353902405,1740120649236,-500.2436958,0.00014173,2]
[353902406,1740120649245,-500.0,0.00014173,2]
[353902407,1740120649255,-156.65484187,0.00014173,2]
[353902408,1740120649264,-500.22613263,0.00014173,2]
[353902409,1740120649273,-500.0,0.00014173,2]
[353902410,1740120649283,-417.22224198,0.00014173,2]
[353902411,1740120649292,-500.97254484,0.00014173,2]
[353902412,1740120649301,-285.28605284,0.00014173,2]
[353902413,1740120649311,-519.05548856,0.00014173,2]
[353902414,1740120649320,-500.0,0.00014173,2]
[353902415,1740120649329,-500.0,0.00014173,2]
[353902416,1740120649338,-500.0,0.00014173,2]
[353902417,1740120649348,-500.0,0.00014173,2]
[353902418,1740120649357,-502.47630544,0.00014173,2]
[353902419,1740120649366,-597.46128311,0.00014173,2]
[353902420,1740120649375,-500.0,0.00014173,2]
[353902421,1740120649385,-500.0,0.00014173,2]
[353902422,1740120649395,-500.0,0.00014191,2]
[353902423,1740120649405,-500.0,0.00014191,2]
[353902424,1740120649414,-337.8382426,0.00014191,2]
[353902425,1740120649423,-500.0,0.00014191,2]
[353902426,1740120649433,-514.52457317,0.00014191,2]
[353902427,1740120649442,-500.0,0.00014191,2]
[353902428,1740120649452,-1204.12,0.00014191,2]
[353902429,1740120649461,-500.0,0.00014191,2]
[353902430,1740120649470,-500.0,0.00014191,2]
[353902431,1740120649480,-500.0,0.00014191,2]
[353902432,1740120649489,-500.0,0.00014191,2]
[353902433,1740120649499,-500.0,0.00014191,2]
[353902434,1740120649509,-500.0,0.00014191,2]
[353902435,1740120649518,-664.07,0.00014191,2]
[353902436,1740120649528,-500.0,0.00014191,2]
[353902437,1740120649537,-558.34,0.00014191,2]
[353902438,1740120649547,-500.0,0.00014191,2]
[353902439,1740120649556,-625.66626844,0.00014191,2]
[353902440,1740120649565,-838.28,0.00014191,2]
[353902441,1740120649574,-500.0,0.00014191,2]
[353902442,1740120649584,-854.95,0.00014191,2]
[353902443,1740120649593,-500.0,0.00014191,2]
[353902444,1740120649602,-500.0,0.00014191,2]
[353902445,1740120649612,-535.71,0.00014191,2]
[353902446,1740120649621,-500.0,0.00014191,2]
[353902447,1740120649630,-500.0,0.00014191,2]
[353902448,1740120649639,-500.0,0.00014191,2]
[353902449,1740120649649,-500.0,0.00014191,2]
[353902450,1740120649658,-946.87,0.00014191,2]
[353902451,1740120649667,-491.74280467,0.00014191,2]
[353902452,1740120649676,-500.0,0.00014191,2]
[353902453,1740120649686,-500.0,0.00014191,2]
[353902454,1740120649696,-727.01,0.00014191,2]
[353902455,1740120649705,-558.0,0.00014191,2]
[353902456,1740120649715,-241.48260556,0.00014191,2]
[353902457,1740120649724,-613.4,0.00014191,2]
[353902458,1740120649733,-500.0,0.00014191,2]
[353902459,1740120649742,-500.0,0.00014191,2]
[353902460,1740120649751,-500.0,0.00014191,2]
[353902461,1740120649760,-500.0,0.00014191,2]
[353902462,1740120649769,-500.0,0.00014191,2]
[353902463,1740120649778,-500.0,0.00014191,2]
[353902464,1740120649787,-500.0,0.00014191,2]
[353902465,1740120649800,-1439.77,0.00014191,2]
[353902466,1740120649809,-641.22,0.00014191,2]
[353902467,1740120649819,-500.0,0.00014191,2]
[353902468,1740120649829,-500.0,0.00014191,2]
[353902469,1740120649839,-1628.44,0.00014191,2]
[353902470,1740120649848,-500.0,0.00014191,2]
[353902471,1740120649857,-500.0,0.00014191,2]
[353902472,1740120649867,-153.030156,0.00014191,2]
[353902473,1740120649878,-151.0,0.00014191,2]
[353902474,1740120649888,-5952.21,0.00014191,2]
[353902475,1740120649898,-500.0,0.00014191,2]
[353902476,1740120649907,-852.78,0.00014191,2]
[353902477,1740120649916,-14329.18,0.00014191,2]
[353902478,1740120649926,-2108.3,0.00014191,2]
[353902479,1740120649935,-2810.54,0.00014191,2]
[353902480,1740120649945,-151.0,0.00014191,2]
[353902481,1740120649954,-26041.13,0.00014191,2]
[353902482,1740120649964,-500.0,0.00014191,2]
[353902483,1740120649973,-1819.15,0.00014191,2]
[353902484,1740120649982,-1091.54,0.00014191,2]
[353902485,1740120649991,-1402.99,0.00014191,2]
[353902486,1740120650000,-553.25,0.00014191,2]
[353902487,1740120650098,-500.0,0.00014191,2]
[353902488,1740120650108,-637.86,0.00014191,2]
[353902489,1740120650118,-1020.28,0.00014191,2]
[353902490,1740120650127,-964.2,0.00014191,2]
[353902491,1740120650137,-500.0,0.00014191,2]
[353902492,1740120650146,-500.0,0.00014191,2]
[353902493,1740120650156,-1691.25,0.00014191,2]
[353902494,1740120650165,-500.0,0.00014191,2]
[353902495,1740120650175,-936.31,0.00014191,2]
[353902496,1740120650184,-1105.84,0.00014191,2]
[353902497,1740120650193,-2604.99,0.00014191,2]
[353902498,1740120650202,-500.0,0.00014191,2]
[353902499,1740120650212,-3205.2,0.00014191,2]
[353902500,1740120650221,-4796.56,0.00014191,2]
[353902501,1740120650231,-11062.54,0.00014191,2]
[353902502,1740120650242,-818.24,0.00014191,2]
[353902503,1740120650252,-779.54,0.00014191,2]
[353902504,1740120650261,-1545.02,0.00014191,2]
[353902505,1740120650270,-500.0,0.00014191,2]
[353902506,1740120650280,-859.94,0.00014191,2]
[353902507,1740120650289,-2726.55,0.00014191,2]
[353902508,1740120650298,-1924.98,0.00014191,2]
[353902509,1740120650307,-151.0,0.00014191,2]
[353902510,1740120650316,-612.97,0.00014191,2]
[353902511,1740120650326,-1670.96,0.00014191,2]
[353902512,1740120650335,-500.0,0.00014191,2]
[353902513,1740120650344,-151.0,0.00014191,2]
[353902514,1740120650354,-500.0,0.00014191,2]
[353902515,1740120650363,-1097.25,0.00014191,2]
[353902516,1740120650373,-2370.75,0.00014191,2]
[353902517,1740120650382,-901.18,0.00014191,2]
[353902518,1740120650393,-5011.77,0.00014191,2]
[353902519,1740120650402,-500.0,0.00014191,2]
[353902520,1740120650412,-1698.63,0.00014191,2]
[353902521,1740120650421,-500.0,0.00014191,2]
[353902522,1740120650431,-500.0,0.00014191,2]
[353902523,1740120650441,-500.0,0.00014191,2]
[353902524,1740120650450,-500.0,0.00014191,2]
[353902525,1740120650459,-500.0,0.00014191,2]
[353902526,1740120650473,-500.0,0.00014191,2]
[353902527,1740120650482,-160.0,0.00014199,2]
[353902528,1740120650491,-160.38987825,0.00014199,2]
[353902529,1740120650500,-16078.9054806,0.000142,5]
[353902530,1740120650510,-99609.58099594,0.000142,5]
[353902531,1740120650519,-151.0,0.000142,2]
[353902532,1740120650528,-151.0,0.000142,2]
[353902533,1740120650538,-5903988.58888434,0.000142,5]
[353902534,1740120650707,-46359.5367214,0.000142,5]
[353902535,1740120650720,-3731.1096896,0.000142,5]
[353902536,1740120650809,-86729.68684069,0.000142,5]
[353902537,1740120650820,-1092293.32338579,0.000142,5]
[353902538,1740120650831,-334.98124228,0.000142,5]
[353902539,1740120650848,-398.076,0.000142,5]
[353902540,1740120650859,-566.17152,0.000142,5]
[353902541,1740120651090,-500.0,0.00013698,2]
[353902542,1740120651100,-500.0,0.00013698,2]
[353902543,1740120651110,-1640.79952754,0.000142,5]
[353902544,1740120651121,-604.0,0.000142,5]
[353902545,1740120651534,-219.89187705,0.00013698,2]
[353902546,1740120651545,-280.10812295,0.00013698,2]
[353902547,1740120651554,-500.0,0.00013698,2]
[353902548,1740120651563,-500.0,0.0001378,2]
[353902549,1740120651571,-500.0,0.0001378,2]
[353902550,1740120651580,-500.0,0.00013863,2]
[353902551,1740120651589,-500.0,0.00013863,2]
[353902552,1740120651599,-500.0,0.00013945,2]
[353902553,1740120651608,-500.0,0.00013945,2]
[353902554,1740120651617,-500.0,0.00013972,2]
[353902555,1740120651627,-500.0,0.00014027,2]
[353902556,1740120651636,-500.0,0.00014109,2]
[353902557,1740120651645,-291.2,0.00014191,2]
[353902558,1740120651654,-13834.10595306,0.000142,5]
[353902559,1740120651663,-10594.79809399,0.000142,5]
[353902564,1740121649861,222.362553,9.041e-05,2]
[353902588,1740121832268,-500.0,0.00011588,2]
[353902590,1740121832279,-500.0,0.00012958,2]
[353902593,1740121832288,-736.8,0.00013697,2]
[353902595,1740121832302,-300.0,0.00013697,2]
[353902597,1740121832311,-273.1,0.00013698,2]
[353902600,1740121832332,-226.9,0.00013698,2]
[353902602,1740121832341,-501.89768178,0.00013698,2]
[353902604,1740121832351,-53.32731822,0.00013698,2]
[353902609,1740121832439,-279.83021472,0.00013698,2]
[353902620,1740121838263,-168.47224624,0.00013698,2]
[353902622,1740121838274,-500.8492166,0.00013698,2]
[353902624,1740121838283,-500.0,0.00013698,2]
[353902626,1740121838292,-500.0,0.00013698,2]
[353902628,1740121838302,-500.57464181,0.00013698,2]
[353902630,1740121838312,-500.0,0.00013698,2]
[353902632,1740121838321,-500.82764785,0.00013698,2]
[353902634,1740121838331,-502.38985434,0.00013698,2]
[353902636,1740121838340,-501.35862701,0.00013698,2]
[353902638,1740121838349,-502.9482959,0.00013698,2]
[353902640,1740121838358,-504.26999674,0.00013698,2]
[353902642,1740121838368,-231.77031703,0.00013698,2]
[353902644,1740121838377,-501.86618136,0.00013698,2]
[353902646,1740121838387,-501.08674826,0.00013698,2]
[353902648,1740121838396,-503.48667751,0.00013698,2]
[353902650,1740121838405,-500.0,0.00013698,2]
[353902651,1740121838414,-500.0,0.00013698,2]
[353902653,1740121838423,-500.0,0.00013698,2]
[353902655,1740121838432,-501.57417996,0.00013698,2]
[353902656,1740121838442,-500.0,0.00013698,2]
[353902658,1740121838451,-501.39590547,0.00013698,2]
[353902660,1740121838461,-503.0342177,0.00013698,2]
[353902661,1740121838469,-501.14785678,0.00013698,2]
[353902662,1740121838478,-500.94095044,0.00013698,2]
[353902663,1740121838488,-500.0,0.00013698,2]
[353902664,1740121838497,-200.83597871,0.00013698,2]
[353902665,1740121838507,-501.04490349,0.00013698,2]
[353902666,1740121838515,-500.0,0.00013698,2]
[353902667,1740121838525,-500.0,0.00013698,2]
[353902668,1740121838534,-500.70417088,0.00013698,2]
[353902669,1740121838544,-500.0,0.00013698,2]
[353902670,1740121838554,-503.05291425,0.00013698,2]
[353902671,1740121838563,-500.0,0.00013698,2]
[353902672,1740121838573,-1000.0,0.00013698,2]
[353902673,1740121838582,-570.24341615,0.00013698,2]
[353902674,1740121838592,-500.0,0.00013698,2]
[353902675,1740121838601,-502.4037985,0.00013698,2]
[353902676,1740121838610,-500.0,0.00013698,2]
[353902677,1740121838619,-501.28897225,0.00013698,2]
[353902678,1740121838628,-500.0,0.00013698,2]
[353902679,1740121838637,-500.0,0.00013698,2]
[353902680,1740121838646,-502.11399747,0.00013698,2]
[353902681,1740121838655,-503.75191257,0.00013698,2]
[353902682,1740121838664,-503.19264668,0.00013698,2]
[353902683,1740121838815,-500.0,0.00013698,2]
[353902684,1740121838825,-504.47075202,0.00013698,2]
[353902685,1740121838834,-502.17409511,0.00013698,2]
[353902686,1740121838843,-500.0,0.00013698,2]
[353902687,1740121838852,-503.09369045,0.00013698,2]
[353902688,1740121838862,-500.84455635,0.00013698,2]
[353902689,1740121838872,-518.52352108,0.00013698,2]
[353902690,1740121838881,-503.37933928,0.00013698,2]
[353902691,1740121838890,-502.9436641,0.00013698,2]
[353902692,1740121838899,-500.0,0.00013698,2]
[353902693,1740121838908,-500.0,0.00013698,2]
[353902694,1740121838917,-500.0,0.00013698,2]
[353902695,1740121838927,-501.64484581,0.00013698,2]
[353902696,1740121838935,-500.0,0.00013698,2]
[353902697,1740121838945,-500.0,0.00013698,2]
[353902698,1740121838954,-500.0,0.00013698,2]
[353902699,1740121838963,-501.90073531,0.00013698,2]
[353902700,1740121838972,-502.76172559,0.00013698,2]
[353902701,1740121838981,-505.77012204,0.00013698,2]
[353902702,1740121838992,-500.0,0.00013698,2]
[353902703,1740121839001,-500.0,0.00013698,2]
[353902704,1740121839011,-504.41181488,0.00013698,2]
[353902705,1740121839020,-500.0,0.00013698,2]
[353902706,1740121839029,-500.0,0.00013698,2]
[353902707,1740121839038,-503.48246439,0.00013698,2]
[353902708,1740121839048,-331.59756976,0.00013698,2]
[353902709,1740121839059,-500.0,0.00013698,2]
[353902710,1740121839068,-503.14349351,0.00013698,2]
[353902711,1740121839077,-504.04147265,0.00013698,2]
[353902712,1740121839086,-500.0,0.00013698,2]
[353902713,1740121839096,-500.0,0.00013698,2]
[353902714,1740121839106,-518.89,0.00013698,2]
[353902715,1740121839115,-507.76117941,0.00013698,2]
[353902716,1740121839124,-500.0,0.00013698,2]
[353902717,1740121839134,-500.0,0.00013698,2]
[353902718,1740121839143,-508.44709384,0.00013698,2]
[353902719,1740121839152,-500.0,0.00013698,2]
[353902720,1740121839162,-500.0,0.00013698,2]
[353902721,1740121839171,-500.0,0.00013698,2]
[353902722,1740121839181,-502.77656829,0.00013698,2]
[353902723,1740121839191,-500.0,0.00013698,2]
[353902724,1740121839205,-183.26128324,0.00013698,2]
[353902725,1740121839215,-330.39211041,0.00013698,2]
[353902726,1740121839225,-500.0,0.00013698,2]
[353902727,1740121839235,-628.71,0.00013698,2]
[353902728,1740121839246,-500.0,0.00013698,2]
[353902729,1740121839256,-500.0,0.00013698,2]
[353902730,1740121839266,-500.0,0.00013698,2]
[353902731,1740121839276,-500.0,0.00013698,2]
[353902732,1740121839285,-509.99386251,0.00013698,2]
[353902733,1740121839295,-500.0,0.00013698,2]
[353902734,1740121839304,-500.0,0.00013698,2]
[353902735,1740121839313,-500.0,0.00013698,2]
[353902736,1740121839334,-641.21,0.00013698,2]
[353902737,1740121839344,-500.0,0.00013698,2]
[353902738,1740121839354,-500.0,0.00013698,2]
[353902739,1740121839364,-500.0,0.00013698,2]
[353902740,1740121839375,-500.0,0.00013698,2]
[353902741,1740121839384,-710.16,0.00013698,2]
[353902742,1740121839395,-502.39382738,0.00013698,2]
[353902743,1740121839405,-500.0,0.00013698,2]
[353902744,1740121839415,-500.0,0.00013698,2]
[353902745,1740121839424,-500.0,0.00013698,2]
[353902746,1740121839434,-500.0,0.00013698,2]
[353902747,1740121839443,-500.0,0.00013698,2]
[353902748,1740121839453,-500.0,0.00013698,2]
[353902749,1740121839463,-545.26,0.00013698,2]
[353902750,1740121839472,-500.0,0.00013698,2]
[353902751,1740121839482,-500.0,0.00013698,2]
[353902752,1740121839491,-507.70170855,0.00013698,2]
[353902753,1740121839501,-500.0,0.00013698,2]
[353902754,1740121839511,-500.0,0.00013698,2]
[353902755,1740121839520,-500.0,0.00013698,2]
[353902756,1740121839530,-500.0,0.00013698,2]
[353902757,1740121839540,-500.0,0.00013698,2]
[353902758,1740121839550,-503.78933649,0.00013698,2]
[353902759,1740121839560,-501.86272266,0.00013698,2]
[353902760,1740121839570,-500.0,0.00013698,2]
[353902761,1740121839579,-502.85106677,0.00013698,2]